Cogmind - Beta 12 X6 @@@ ROGUE MODE // 2023.01.20 @ 22:30:03 Player: Decinym Result: Self-destructed Performance ------------- Evolutions (4) 2000 Regions Visited (13) 2600 Robots Destroyed (59) 295 Value Destroyed (2074) 2074 Prototype IDs (42) 840 Alien Tech Used (0) 0 Bonus (-1348) -1348 TOTAL SCORE: 6461 Bonus ------- High Alert Combat Kills 45 Follower Combat Kills 763 Aligned with FarCom 300 Met Data Miner 300 Friendly Fire -2756 Cogmind --------- Core Integrity 774/850 Matter 186/300 Energy 280/280 System Corruption 3% Temperature Cool (0) Movement Core (350) Ox6 Location -6/Waste Parts ------- > --- POWER (2) -------- Cooled Ion Engine > --- PROPULSION (4) --- (None) > --- UTILITY (7) ------ Improved Trap Scanner Improved Signal Interpreter > --- WEAPON (2) ------- Field Lobotomy Kit > --- INVENTORY (5) ---- Heavy Particle Gun Bore Cannon Missile Launcher Powered Hammer Peak State ------------ > --- POWER ------------ Mini Fusion Reactor > --- PROPULSION ------- Light Treads Light Treads Light Treads Light Treads > --- UTILITY ---------- Experimental Heat Sink High-capacity Storage Unit Structural Scanner Improved Signal Interpreter Targeting Computer Centrium Light Armor Plating > --- WEAPON ----------- Heavy Particle Gun Heavy Particle Gun > --- INVENTORY -------- Cooled Ion Engine Huge Storage Unit Advanced Energy Well Light Armor Plating Army-in-a-Box Chronowheel 01-MTF's Shockpuncher Enhanced Autogun Enhanced Autogun Enhanced Autogun Missile Launcher Field Lobotomy Kit Plasma Cutter [Rating: 53] Favorites ----------- Power Mini Fusion Reactor Engine Cooled Ion Engine Reactor Mini Fusion Reactor Propulsion Light Treads Treads Light Treads Leg Aluminum Leg Wheel Compact Wheel Hover Unit Cooled Gravmag System Utility Structural Scanner Device Structural Scanner Storage High-capacity Storage Unit Processor Targeting Computer Hackware Hacking Suite Protection Improved Light Armor Plating Weapon Heavy Particle Gun Energy Gun Heavy Particle Gun Ballistic Gun Enhanced Autogun Ballistic Cannon Flak Cannon Launcher Mini Grenade Launcher Special Weapon Plasma Cutter Impact Weapon Powered Hammer Slashing Weapon Master Tearclaws Build | -11 -10 -10 -10 -9 -8 -8 -7 -7 -7 -7 -6 -6 -6 ------- Run | Jun Mat Min Exi Min Mat Sto Fac Low Low Dat Pro Fac Was Slots Evolved 8 | . . . . . 4 . 2 . . . . 2 . Power 1 | . . . . . . . . . . . . 1 . Propulsion 2 | . . . . . 1 . 1 . . . . . . Utility 5 | . . . . . 3 . 1 . . . . 1 . Weapon . | . . . . . . . . . . . . . . Parts Attached 75 | . 1 . 1 1 18 24 2 6 9 . 8 2 3 Power 4 | . . . . . 1 2 . . . . 1 . . Engine 3 | . . . . . 1 1 . . . . 1 . . Core . | . . . . . . . . . . . . . . Reactor 1 | . . . . . . 1 . . . . . . . Propulsion 16 | . . . . . 6 5 1 . 1 . 3 . . Treads 12 | . . . . . 5 4 1 . 1 . 1 . . Leg 2 | . . . . . 1 . . . . . 1 . . Wheel 1 | . . . . . . . . . . . 1 . . Hover 1 | . . . . . . 1 . . . . . . . Flight . | . . . . . . . . . . . . . . Utility 25 | . 1 . 1 . 4 11 1 2 1 . 1 2 1 Device 11 | . 1 . . . 1 5 . . . . 1 2 1 Storage 3 | . . . 1 . 1 1 . . . . . . . Processor 2 | . . . . . 1 . 1 . . . . . . Hackware 1 | . . . . . . 1 . . . . . . . Protection 8 | . . . . . 1 4 . 2 1 . . . . Artifact . | . . . . . . . . . . . . . . Weapon 30 | . . . . 1 7 6 . 4 7 . 3 . 2 Energy Gun 9 | . . . . . 1 3 . 3 2 . . . . Energy Cannon . | . . . . . . . . . . . . . . Ballistic Gun 9 | . . . . 1 3 1 . . 2 . 2 . . Ballistic Cannon 1 | . . . . . 1 . . . . . . . . Launcher 3 | . . . . . 2 1 . . . . . . . Special Weapon 4 | . . . . . . 1 . 1 1 . . . 1 Impact Weapon 3 | . . . . . . . . . 2 . 1 . . Slashing Weapon 1 | . . . . . . . . . . . . . 1 Piercing Weapon . | . . . . . . . . . . . . . . Special Melee Weapon . | . . . . . . . . . . . . . . Unidentified Prototypes 10 | . . . . . 1 8 . . . . . . 1 Corrupted Parts 1 | . . . . . . . . . . . . . 1 System Corruption 3 | . . . . . . . . . . . . . 3 Parts Lost 17 | . . . . . 2 . . . 2 . 6 2 5 Power 1 | . . . . . . . . . . . 1 . . Propulsion 10 | . . . . . 2 . . . 1 . 3 1 3 Utility 6 | . . . . . . . . . 1 . 2 1 2 Weapon . | . . . . . . . . . . . . . . Highest Loss Streak 5 | . . . . . 2 . . . 2 . 4 2 5 To Critical Strikes . | . . . . . . . . . . . . . . Average Slot Usage (%) 93 | . 100 100 100 100 76 98 92 99 98 92 81 81 63 Engine 5 | . 14 14 14 14 8 8 . . . . 5 6 6 Reactor 3 | . . . . . . . 7 7 7 7 1 . . Treads 21 | . . . . . 15 27 30 30 30 30 18 13 10 Leg 5 | . 28 28 28 28 2 . . . . . 5 6 4 Device 12 | . 14 14 14 14 15 16 15 11 7 7 15 21 16 Storage 8 | . 14 14 14 14 9 9 7 7 7 7 7 6 5 Processor 9 | . . . . . 2 9 7 15 15 15 7 6 6 Protection 6 | . . . . . 4 7 7 10 13 7 . . . Energy Gun 9 | . 14 14 14 7 3 10 15 14 7 7 1 . . Ballistic Gun 7 | . 14 14 14 21 10 6 . . 5 7 12 13 10 Naked Turns . | . . . . . . . . . . . . . . Heaviest Build 71 | 12 13 13 28 30 71 71 58 61 62 59 60 63 59 Greatest Support 88 | 20 20 20 20 20 60 60 80 80 88 88 76 48 48 Greatest Overweight (x) 6 | . . . 1 1 2 1 . . . . 3 3 6 Average Overweight (x) . | . . . . 1 1 . . . . . 1 2 1 Largest Inventory Capacity 20 | . 8 8 15 15 20 20 20 20 20 20 20 20 20 Average Capacity 18 | . 8 8 12 15 16 20 20 20 20 20 20 20 17 Most Carried 20 | . 6 8 15 15 18 20 19 17 18 17 17 16 17 Average Carried 15 | . 6 7 10 15 15 19 18 15 17 17 15 16 14 Final Capacity 20 | 8 8 8 15 15 20 20 20 20 20 20 20 20 5 Final Carried 20 | 6 6 8 15 15 18 20 18 17 17 17 16 16 4 Class Distribution -------------------- 62% | Scavenger-Mutant 37% | Mutant Dominant Class ---------------- Mutant | -10/Materials Mutant | -10/Mines Mutant | -10/Exiles Mutant | -9/Mines Mutant | -8/Materials Scavenger-Mutant | -8/Storage Scavenger-Mutant | -7/Factory Scavenger-Mutant | -7/Lower Caves Scavenger-Mutant | -7/Lower Caves Scavenger-Mutant | -7/Data Miner Mutant | -6/Proximity Caves Mutant | -6/Factory Mutant | -6/Waste Resources | -11 -10 -10 -10 -9 -8 -8 -7 -7 -7 -7 -6 -6 -6 ----------- Run | Jun Mat Min Exi Min Mat Sto Fac Low Low Dat Pro Fac Was Matter Collected 1856 | 146 . 212 10 13 536 526 . 80 140 . 193 . . Remotely . | . . . . . . . . . . . . . . Salvage Created 2039 | . . . . 37 723 659 . 102 276 . 242 . . Parts 118 | . . . . 5 36 38 . 11 17 . 11 . . Haulers Intercepted 4 | . . . . . 1 3 . . . . . . . Recyclers Shooed 4 | . . 1 . . . 3 . . . . . . . Parts Field Recycled . | . . . . . . . . . . . . . . Retrieved Matter . | . . . . . . . . . . . . . . Parts Self-Destructed 35 | . . . . . . . . 3 20 . 12 . . Prevented 1 | . . . . . . . . . 1 . . . . Kills | -11 -10 -10 -10 -9 -8 -8 -7 -7 -7 -7 -6 -6 -6 ------- Run | Jun Mat Min Exi Min Mat Sto Fac Low Low Dat Pro Fac Was Combat Hostiles Destroyed 42 | . . . . 2 17 8 . 3 6 . 6 . . Guns 27 | . . . . 2 6 4 . 3 6 . 6 . . Cannons 1 | . . . . . 1 . . . . . . . . AOE 14 | . . . . . 10 4 . . . . . . . Classes Destroyed 13 | . . . . 1 9 1 . 1 1 . . . . Worker 2 | . . . . . 1 1 . . . . . . . Builder 4 | . . . . . 2 2 . . . . . . . Hauler 4 | . . . . . 1 3 . . . . . . . Recycler 3 | . . . . . 1 2 . . . . . . . Mechanic 1 | . . . . . . 1 . . . . . . . Swarmer 8 | . . . . 2 . . . 3 . . 3 . . Grunt 24 | . . . . . 13 7 . . 1 . 3 . . Brawler 1 | . . . . . 1 . . . . . . . . Sentry 3 | . . . . . 1 1 . . 1 . . . . Hunter 4 | . . . . . 1 . . . 3 . . . . Programmer 1 | . . . . . . . . . 1 . . . . Heavy 1 | . . . . . 1 . . . . . . . . Master Thief 1 | . . . . . . . . 1 . . . . . Thug 1 | . . . . . 1 . . . . . . . . Best Kill Streak 12 | . . . . 2 12 10 . 3 3 . 3 . . Combat Bots Only 10 | . . . . 2 10 7 . 3 3 . 3 . . Max Kills in Single Turn 2 | . . . . 1 2 2 . 1 1 . 1 . . Gunslinging . | . . . . . . . . . . . . . . Exploded 2 | . . . . . 2 2 . . . . . . . Melee . | . . . . . . . . . . . . . . Uniques/NPCs Destroyed 1 | . . . . . . 1 . . . . . . . 01-MTF (-8/Storage) Combat | -11 -10 -10 -10 -9 -8 -8 -7 -7 -7 -7 -6 -6 -6 -------- Run | Jun Mat Min Exi Min Mat Sto Fac Low Low Dat Pro Fac Was Damage Taken 3382 | . . 21 . 10 1132 573 . 306 608 . 490 56 186 Core 455 | . . . . 10 146 58 . 52 50 . 63 . 76 Absorbed by Shields 152 | . . . . . . . . . . . 133 19 . Regen/Repaired (Parts) 17 | . . . . . . 17 . . . . . . . Core Remaining (%) 83 | 100 . . . 96 . 62 . . . . 76 . . Volleys Fired 233 | . . 5 . 3 50 98 . 18 23 . 23 . 13 Largest 2 | . . 2 . 2 2 2 . 2 2 . 2 . 2 Hottest 119 | . . 60 . 60 119 110 . 110 105 . 88 . 50 Shots Fired 407 | . . 8 . 6 81 170 . 28 45 . 46 . 23 Gun 356 | . . 8 . 6 59 151 . 20 45 . 46 . 21 Cannon 3 | . . . . . 3 . . . . . . . . Launcher 26 | . . . . . 19 7 . . . . . . . Special 22 | . . . . . . 12 . 8 . . . . 2 Kinetic 186 | . . 5 . 3 53 48 . . 20 . 36 . 21 Thermal 188 | . . 3 . 3 9 115 . 25 23 . 10 . . Explosive 26 | . . . . . 19 7 . . . . . . . Electromagnetic 5 | . . . . . . . . 3 2 . . . . Robot Hit Streak 14 | . . 1 . 3 9 14 . 8 13 . 10 . 12 Robot Miss Streak 6 | . . 3 . 2 3 6 . 3 4 . 4 . 1 Penetration Max . | . . . . . . . . . . . . . . Secondary Targets 3 | . . . . 1 . 2 . . . . . . . Max Gunslinging Chain 1 | . . . . 1 . 1 . . . . . . . Shots Hit Robots 268 | . . 3 . 3 48 112 . 19 32 . 30 . 21 Core Hits 137 | . 1 2 . 3 58 42 . 7 11 . 12 . 1 Critical Kills 1 | . . . . . 1 . . . . . . . . Critical Parts Destroyed 1 | . . . . . 1 . . . . . . . . Critical Strikes 9 | . . . . . 3 2 . 2 2 . . . . Burn 7 | . . . . . 1 2 . 2 2 . . . . Destroy 2 | . . . . . 2 . . . . . . . . Melee Attacks 9 | . . . . . . . . . 5 . 4 . . Impact 9 | . . . . . . . . . 5 . 4 . . Slashing . | . . . . . . . . . . . . . . Piercing . | . . . . . . . . . . . . . . Sneak Attacks . | . . . . . . . . . . . . . . Combat Hostiles . | . . . . . . . . . . . . . . Follow-up Attacks . | . . . . . . . . . . . . . . Damage Inflicted 6742 | . 1 40 . 27 2546 2288 . 403 606 . 506 . 325 Guns 3688 | . . 24 . 27 621 1261 . 318 606 . 506 . 325 Cannons 33 | . . . . . 33 . . . . . . . . Explosions 2913 | . . . . . 1892 980 . 41 . . . . . Melee . | . . . . . . . . . . . . . . Ramming 34 | . 1 16 . . . 17 . . . . . . . Kinetic 2073 | . . 24 . 15 546 487 . . 266 . 410 . 325 Thermal 1617 | . . . . 12 108 804 . 301 296 . 96 . . Explosive 2872 | . . . . . 1892 980 . . . . . . . Electromagnetic 146 | . . . . . . . . 102 44 . . . . Impact . | . . . . . . . . . . . . . . Slashing . | . . . . . . . . . . . . . . Piercing . | . . . . . . . . . . . . . . Highest Corruption 3 | . . . . . . . . . . . . . 3 Average Corruption 3 | . . . . . . . . . . . . . 3 Corruption Purged . | . . . . . . . . . . . . . . Corruption Blocked . | . . . . . . . . . . . . . . Effects 1 | . . . . . . . . . . . . . 1 Message Errors 1 | . . . . . . . . . . . . . 1 Overload Shots . | . . . . . . . . . . . . . . Overflow Damage 42 | . . . . . 13 22 . 7 . . . . . Projectiles 7 | . . . . . . . . 7 . . . . . Explosions 35 | . . . . . 13 22 . . . . . . . Melee . | . . . . . . . . . . . . . . Knockbacks 2 | . . . . . 2 . . . . . . . . Impact . | . . . . . . . . . . . . . . Kinetic 2 | . . . . . 2 . . . . . . . . Secondary . | . . . . . . . . . . . . . . Self-Inflicted Damage 102 | . . . . . 48 20 . 34 . . . . . Shots 3 | . . . . . 1 1 . 1 . . . . . Rammed 1 | . . . . . . 1 . . . . . . . Targets Rammed 5 | . 1 3 . . . 1 . . . . . . . Kicked 4 | . 1 3 . . . . . . . . . . . Crushed . | . . . . . . . . . . . . . . Highest Temperature 294 | . . 20 . 20 121 165 . 4 294 . 294 . . Average Temperature 83 | . . 15 . 15 40 52 . 4 115 . 117 . . Received Heat Transfer 567 | . . 9 . . 270 234 . . . . 45 9 . Siege Activations . | . . . . . . . . . . . . . . Robots Corrupted . | . . . . . . . . . . . . . . Combat Hostiles . | . . . . . . . . . . . . . . Parts Fried 1 | . . . . . . . . 1 . . . . . Impact Corruptions . | . . . . . . . . . . . . . . Robots Melted . | . . . . . . . . . . . . . . Combat Hostiles . | . . . . . . . . . . . . . . Parts Melted 4 | . . . . . 1 1 . 2 . . . . . Heat Transferred 5144 | . . . . 25 259 3145 . 790 740 . 185 . . Parts Sabotaged . | . . . . . . . . . . . . . . Parts Stolen 4 | . . . . . . . . 3 1 . . . . Parts Stripped . | . . . . . . . . . . . . . . Power Chain Reactions 1 | . . . . . . . . 1 . . . . . Missiles Intercepted . | . . . . . . . . . . . . . . Alert | -11 -10 -10 -10 -9 -8 -8 -7 -7 -7 -7 -6 -6 -6 ------- Run | Jun Mat Min Exi Min Mat Sto Fac Low Low Dat Pro Fac Was Peak Influence 571 | . 15 111 . 74 445 571 135 . . . . 280 98 Initial 187 | . . 5 . . 28 187 135 . . . . . 98 Average 238 | . 9 14 . 67 310 376 135 . . . . 29 79 Maximum Alert Level 2 | . . . . . 2 2 . . . . . 1 . Low Security (%) 40 | . 100 100 . 100 14 3 100 . . . . 89 100 Level 1 35 | . . . . . 55 53 . . . . . 10 . Level 2 24 | . . . . . 30 42 . . . . . . . Level 3 . | . . . . . . . . . . . . . . Level 4 . | . . . . . . . . . . . . . . Level 5 . | . . . . . . . . . . . . . . High Security . | . . . . . . . . . . . . . . Max Security . | . . . . . . . . . . . . . . Squads Dispatched 7 | . . 2 . . 3 1 . . . . . 1 . Investigation 1 | . . 1 . . . . . . . . . . . Extermination . | . . . . . . . . . . . . . . Reinforcement 4 | . . . . . 3 1 . . . . . . . Assault 2 | . . 1 . . . . . . . . . 1 . Garrison . | . . . . . . . . . . . . . . Intercept . | . . . . . . . . . . . . . . Searches Triggered . | . . . . . . . . . . . . . . Construction Impeded 1 | . . . . . 1 . . . . . . . . Haulers Reinforced . | . . . . . . . . . . . . . . Active Scanning Responses . | . . . . . . . . . . . . . . Cargo Convoy Interrupts . | . . . . . . . . . . . . . . Stealth | -11 -10 -10 -10 -9 -8 -8 -7 -7 -7 -7 -6 -6 -6 --------- Run | Jun Mat Min Exi Min Mat Sto Fac Low Low Dat Pro Fac Was Distress Signals 5 | . . 1 . . 2 2 . . . . . . . Communications Jammed . | . . . . . . . . . . . . . . Distress Signals . | . . . . . . . . . . . . . . Times Spotted 91 | . 1 5 . 2 28 26 . 9 9 . 7 1 3 Peak Tracking Total 8 | . 1 2 . . 8 6 . 3 3 . 3 1 3 Tactical Retreats 4 | . . 1 . . 2 . . 1 . . . . . Traps | -11 -10 -10 -10 -9 -8 -8 -7 -7 -7 -7 -6 -6 -6 ------- Run | Jun Mat Min Exi Min Mat Sto Fac Low Low Dat Pro Fac Was Traps Triggered 2 | . . . . . . 1 . . . . . 1 . Indirectly . | . . . . . . . . . . . . . . Trap Hack Attempts . | . . . . . . . . . . . . . . Triggered . | . . . . . . . . . . . . . . Disarmed . | . . . . . . . . . . . . . . Reprogrammed . | . . . . . . . . . . . . . . Reused . | . . . . . . . . . . . . . . Traps Extracted . | . . . . . . . . . . . . . . Installed . | . . . . . . . . . . . . . . Triggered 1 | . . . . . . . . . 1 . . . . Machines | -11 -10 -10 -10 -9 -8 -8 -7 -7 -7 -7 -6 -6 -6 ---------- Run | Jun Mat Min Exi Min Mat Sto Fac Low Low Dat Pro Fac Was Machines Disabled 6 | . . . . . . 3 . . . . . 3 . Max in Single Turn 1 | . . . . . . 1 . . . . . . . Garrison Access 2 | . . . . . . 1 . . . . . 1 . Machines Repaired . | . . . . . . . . . . . . . . Machines Sabotaged . | . . . . . . . . . . . . . . Overloaded Fab Kills . | . . . . . . . . . . . . . . Hacking | -11 -10 -10 -10 -9 -8 -8 -7 -7 -7 -7 -6 -6 -6 --------- Run | Jun Mat Min Exi Min Mat Sto Fac Low Low Dat Pro Fac Was Machines Accessed 21 | . . 1 2 . 1 10 . 1 1 4 . 1 . Terminals 10 | . . . . . 1 8 . . . . . 1 . Fabricators . | . . . . . . . . . . . . . . Repair Stations 1 | . . . . . . 1 . . . . . . . Recycling Units . | . . . . . . . . . . . . . . Scanalyzers . | . . . . . . . . . . . . . . Garrison Access 1 | . . . . . . 1 . . . . . . . Total Hacks 66 | . . 1 2 . 2 29 . 1 1 29 . 1 . Successful 50 | . . 1 2 . 2 14 . 1 1 29 . . . Failed 16 | . . . . . . 15 . . . . . 1 . Catastrophic 3 | . . . . . . 2 . . . . . 1 . Database Lockouts . | . . . . . . . . . . . . . . Manual 17 | . . . 1 . 2 14 . . . . . . . Terminals 28 | . . . . . 2 25 . . . . . 1 . Fabricators . | . . . . . . . . . . . . . . Repair Stations 3 | . . . . . . 3 . . . . . . . Recycling Units . | . . . . . . . . . . . . . . Scanalyzers . | . . . . . . . . . . . . . . Garrison Access 1 | . . . . . . 1 . . . . . . . Terminal Hacks 44 | . . 1 2 . 2 8 . 1 1 29 . . . Record 12 | . . . 1 . . . . . . 11 . . . Part Schematic 12 | . . . . . . 2 . . . 10 . . . Robot Schematic 5 | . . . . . . . . . . 5 . . . Prototype ID Bank 3 | . . . . . . . . . . 3 . . . Open Door 4 | . . 1 . . . 1 . 1 1 . . . . Branch Access Points 1 | . . . . . 1 . . . . . . . . Alert Level 1 | . . . . . . 1 . . . . . . . Unreport Threat 2 | . . . . . . 2 . . . . . . . Zone Layout 3 | . . . . . 1 2 . . . . . . . EX-Prototype ID Bank 1 | . . . 1 . . . . . . . . . . Fabricator Hacks . | . . . . . . . . . . . . . . Repair Station Hacks 2 | . . . . . . 2 . . . . . . . Scan Component 1 | . . . . . . 1 . . . . . . . Repair 1 | . . . . . . 1 . . . . . . . Recycling Unit Hacks . | . . . . . . . . . . . . . . Scanalyzer . | . . . . . . . . . . . . . . Garrison Access Hacks 1 | . . . . . . 1 . . . . . . . Seal Access 1 | . . . . . . 1 . . . . . . . Unauthorized Hacks 3 | . . . . . . 3 . . . . . . . Terminals 3 | . . . . . . 3 . . . . . . . Botnet 2 | . . . . . . 2 . . . . . . . Disrupt 1 | . . . . . . 1 . . . . . . . Fabricators . | . . . . . . . . . . . . . . Repair Stations . | . . . . . . . . . . . . . . Recycling Units . | . . . . . . . . . . . . . . Scanalyzers . | . . . . . . . . . . . . . . Garrison Access . | . . . . . . . . . . . . . . Data Cores Recovered . | . . . . . . . . . . . . . . Used . | . . . . . . . . . . . . . . Hacking Detections 11 | . . . . . 1 9 . . . . . 1 . Full Trace Events . | . . . . . . . . . . . . . . Feedback Events . | . . . . . . . . . . . . . . Feedback Blocked . | . . . . . . . . . . . . . . Robot Schematics Acquired 5 | . . . . . . . . . . 5 . . . Robots Built . | . . . . . . . . . . . . . . Authchips . | . . . . . . . . . . . . . . Time . | . . . . . . . . . . . . . . Total Robot Build Rating . | . . . . . . . . . . . . . . Part Schematics Acquired 12 | . . . . . . 2 . . . 10 . . . Parts Built . | . . . . . . . . . . . . . . Authchips . | . . . . . . . . . . . . . . Time . | . . . . . . . . . . . . . . Total Part Build Rating . | . . . . . . . . . . . . . . Parts Repaired 1 | . . . . . . 1 . . . . . . . Time 26 | . . . . . . 26 . . . . . . . Parts Recycled . | . . . . . . . . . . . . . . Recycled Matter . | . . . . . . . . . . . . . . Retrieved Matter . | . . . . . . . . . . . . . . Retrieved Components . | . . . . . . . . . . . . . . Parts Scanalyzed . | . . . . . . . . . . . . . . Part Schematics Acquired . | . . . . . . . . . . . . . . Parts Damaged . | . . . . . . . . . . . . . . Bothacking | -11 -10 -10 -10 -9 -8 -8 -7 -7 -7 -7 -6 -6 -6 ------------ Run | Jun Mat Min Exi Min Mat Sto Fac Low Low Dat Pro Fac Was Used RIF Installer . | . . . . . . . . . . . . . . Robots Hacked . | . . . . . . . . . . . . . . Non-combat . | . . . . . . . . . . . . . . Combat . | . . . . . . . . . . . . . . Robot Hacks Applied . | . . . . . . . . . . . . . . Relay Couplers Released 1 | . . . . . . . . . . . . 1 . Machine Destruction 1 | . . . . . . . . . . . . 1 . Fabnet Peak Effective % . | . . . . . . . . . . . . . . Robots Rewired 1 | . . . . . . . . 1 . . . . . Allies Hacked . | . . . . . . . . . . . . . . Hacks Repelled . | . . . . . . . . . . . . . . Allies | -11 -10 -10 -10 -9 -8 -8 -7 -7 -7 -7 -6 -6 -6 -------- Run | Jun Mat Min Exi Min Mat Sto Fac Low Low Dat Pro Fac Was Total Allies 8 | . . 1 . . . 3 . 1 . . 1 . 2 Largest Group 2 | . . 1 1 1 1 2 . 1 . . 1 1 1 Highest-Rated Group 134 | . . 31 31 31 31 115 . 63 . . 96 96 134 Highest-Rated Ally 134 | . . 31 31 31 31 100 . 63 . . 96 96 134 Total Orders . | . . . . . . . . . . . . . . Ally Attacks 81 | . . 6 . 1 3 43 . . . . 11 4 13 Total Damage 2950 | . . 106 . 21 22 1314 . . . . 434 646 407 Kills 30 | . . 4 . 1 1 17 . . . . 1 5 1 Allies Corrupted . | . . . . . . . . . . . . . . Allies Melted . | . . . . . . . . . . . . . . Field Lobotomies 2 | . . . . . . . . . . . . . 2 Intel | -11 -10 -10 -10 -9 -8 -8 -7 -7 -7 -7 -6 -6 -6 ------- Run | Jun Mat Min Exi Min Mat Sto Fac Low Low Dat Pro Fac Was Robot Analysis Total . | . . . . . . . . . . . . . . Derelict Logs Recovered 5 | . . 1 . . . . . 1 1 . 2 . . Drone Launches . | . . . . . . . . . . . . . . Drone Recoveries . | . . . . . . . . . . . . . . Exploration | -11 -10 -10 -10 -9 -8 -8 -7 -7 -7 -7 -6 -6 -6 ------------- Run | Jun Mat Min Exi Min Mat Sto Fac Low Low Dat Pro Fac Was Turns Passed 8527 | . 78 670 594 24 724 1321 152 1685 1718 143 1171 157 90 Spaces Moved 4769 | 1 63 510 385 8 221 565 94 1002 1013 90 695 102 20 Core 2 | . . . . . . . . . . . . . 2 Treads 3280 | . . . . . 212 565 94 1002 1013 90 278 8 18 Legs 976 | 1 63 510 385 8 9 . . . . . . . . Wheels 511 | . . . . . . . . . . . 417 94 . Hover . | . . . . . . . . . . . . . . Flight . | . . . . . . . . . . . . . . Fastest Speed 120 | 120 120 120 120 190 163 160 160 160 160 160 145 145 240 Average Speed 159 | 120 120 120 152 190 252 166 160 160 160 160 156 152 251 Slowest Speed 350 | 120 120 120 190 190 330 243 160 160 160 160 240 240 350 Overloaded Moves . | . . . . . . . . . . . . . . Propulsion Burnouts . | . . . . . . . . . . . . . . Robots Hopped . | . . . . . . . . . . . . . . Cave-ins Triggered . | . . . . . . . . . . . . . . Exploration Rate (%) 46 | 2 24 82 65 7 25 87 3 98 96 71 66 3 21 Regions Visited 13 Branch Regions 8 Pre-discovered Areas 3 | . . 1 1 . . . . . . 1 . . . Known Exits Taken 6 | . . . . . 1 . 1 1 1 1 1 . . Unknown Exits Taken 6 | 1 1 1 1 1 . 1 . . . . . . . Scrap Searched 11 | . . . . 1 . . . 4 4 . 2 . . Spaces Dug 6 | . . . . . . . . . 3 . 3 . . Terrain Destroyed 108 | . . . . . 67 31 . 4 3 . 3 . . Melee 6 | . . . . . . . . . 3 . 3 . . Projectile . | . . . . . . . . . . . . . . AOE 102 | . . . . . 67 31 . 4 . . . . . Terrain Rammed . | . . . . . . . . . . . . . . Walls Destroyed . | . . . . . . . . . . . . . . Machines Disabled . | . . . . . . . . . . . . . . Actions | -11 -10 -10 -10 -9 -8 -8 -7 -7 -7 -7 -6 -6 -6 --------- Run | Jun Mat Min Exi Min Mat Sto Fac Low Low Dat Pro Fac Was Total 5311 | . 64 562 392 12 325 788 96 1046 1056 89 734 104 43 Wait 132 | . . 35 . . 21 61 1 4 2 . 3 . 5 Move 4757 | . 62 509 384 7 220 564 93 1001 1012 89 694 102 20 Hop . | . . . . . . . . . . . . . . Pick Up 35 | . . 6 4 . 6 11 . 5 1 . 2 . . Fast Attach 37 | . 1 . . 1 11 15 . 2 2 . 2 2 1 Attach 15 | . . . . . 3 2 2 . 3 . 3 . 2 Detach 11 | . . . . . 2 4 . 1 3 . . . 1 Swap 23 | . . . 1 . 4 7 . 4 4 . 3 . . Drop 44 | . . 4 3 1 8 25 . 1 1 . . . 1 Fire 233 | . . 5 . 3 50 98 . 18 23 . 23 . 13 Melee 9 | . . . . . . . . . 5 . 4 . . Ram . | . . . . . . . . . . . . . . Kick 4 | . 1 3 . . . . . . . . . . . Crush 1 | . . . . . . 1 . . . . . . . Escape Stasis . | . . . . . . . . . . . . . . Rewire 10 | . . . . . . . . 10 . . . . . Trap . | . . . . . . . . . . . . . . Miscellaneous . | . . . . . . . . . . . . . . Route ------- -11/Junkyard -10/Materials -10/Mines (discovered 2 exits: [*Mat] / *Exi) -10/Exiles -9/Mines -8/Materials -8/Storage -7/Factory -7/Lower Caves -7/Lower Caves (discovered 2 exits: *Fac / *Dat) -7/Data Miner -6/Proximity Caves -6/Factory -6/Waste History --------- Turn | Location | Event 1 | -11/Junkyard | Discovered new exit (range 0) 1 | -11/Junkyard | Entered Materials 39 | -10/Materials | Discovered new exit (range 7) 79 | -10/Materials | Entered Mines 172 | -10/Mines | Assembled infested the area 177 | -10/Mines | Assisted by a Guerilla fighting off Assembled 304 | -10/Mines | Met a Derelict testing a Signal Generator 313 | -10/Mines | Build established: Mutant 437 | -10/Mines | Discovered new exit (range 10) 460 | -10/Mines | Met a Derelict shopkeep closing up shop 604 | -10/Mines | Learned location of Zion (-6) 743 | -10/Mines | Deemed a non-threat by the Exiles lab entrance 743 | -10/Mines | Discovered new exit (range 6) 749 | -10/Mines | Entered Exiles 749 | -10/Exiles | Accompanied by 1 ally 777 | -10/Exiles | Met 8R-AWN 799 | -10/Exiles | Met EX-HEX 835 | -10/Exiles | Met EX-BIN 851 | -10/Exiles | Aligned with FarCom system 853 | -10/Exiles | Given EX-Vault access code 880 | -10/Exiles | Opened EX-Vault 890 | -10/Exiles | Found Chronowheel 894 | -10/Exiles | Found Field Lobotomy Kit 921 | -10/Exiles | Warned to stay clear of 0b10 Research branches 1150 | -10/Exiles | Found Army-in-a-Box 1258 | -10/Exiles | Met EX-DEC 1320 | -10/Exiles | Discovered new exit (range 14) 1343 | -10/Exiles | Stole three prototypes: Army-in-a-Box, Chronowheel, Field Lobotomy Kit 1343 | -10/Exiles | Entered Mines 1343 | -9/Mines | Accompanied by 1 ally 1349 | -9/Mines | Discovered new exit (range 6) 1367 | -9/Mines | Entered Materials 1367 | -8/Materials | Accompanied by 1 ally 1367 | -8/Materials | Evolved 4 slots: Propulsion x1, Utility x3 1377 | -8/Materials | Identified exit to Storage 1527 | -8/Materials | Destroyed 10 combat bots 2091 | -8/Materials | Entered Storage 2133 | -8/Storage | Build established: Scavenger-Mutant 2191 | -8/Storage | Destroyed 7 combat bots 2283 | -8/Storage | Met 01-MTF 3006 | -8/Storage | Repaired Structural Scanner 3135 | -8/Storage | Discovered new exit (range 13) 3363 | -8/Storage | Destroyed 01-MTF 3382 | -8/Storage | Found 01-MTF's Shockpuncher 3412 | -8/Storage | Entered Factory 3412 | -7/Factory | Evolved 2 slots: Propulsion x1, Utility x1 3414 | -7/Factory | FarCom data flow suspended 3554 | -7/Factory | Discovered new exit (range 5) 3563 | -7/Factory | Identified exit to Lower Caves 3564 | -7/Factory | Entered Lower Caves 3564 | -7/Lower Caves | Spotted N1-6Q1(f) 3564 | -7/Lower Caves | Spotted NC-NOL(f) 3565 | -7/Lower Caves | Encountered a Master Thief 3565 | -7/Lower Caves | Encountered a Master Thief 3565 | -7/Lower Caves | Army-in-a-Box stolen by Master Thief 3565 | -7/Lower Caves | Chronowheel stolen by Master Thief 3565 | -7/Lower Caves | Spotted SS-WHA(f) 3566 | -7/Lower Caves | Encountered a Master Thief 3570 | -7/Lower Caves | Centrium Light Armor Plating stolen by Master Thief 3585 | -7/Lower Caves | Rewired SS-WHA(f) 3632 | -7/Lower Caves | Destroyed SS-WHA(f) 4009 | -7/Lower Caves | Encountered a Warlord checkpoint 4266 | -7/Lower Caves | Discovered new exit (range 13) 4284 | -7/Lower Caves | Identified exit to Lower Caves 5249 | -7/Lower Caves | Entered another Lower Caves area 5249 | -7/Lower Caves | Spotted O5-QH6(f) 5250 | -7/Lower Caves | Encountered a Master Thief 5254 | -7/Lower Caves | Centrium Light Armor Plating stolen by Master Thief 5844 | -7/Lower Caves | Discovered new exit (range 8) 5855 | -7/Lower Caves | Identified exit to Factory 6030 | -7/Lower Caves | Encountered a Warlord checkpoint 6362 | -7/Lower Caves | Attracted the attention of an 0b10 checkpoint 6615 | -7/Lower Caves | Discovered new exit (range 5) 6626 | -7/Lower Caves | Identified exit to Data Miner 6649 | -7/Lower Caves | Ambushed by research squad 6967 | -7/Lower Caves | Entered Data Miner 6967 | -7/Data Miner | Discovered new exit (range 6) 6998 | -7/Data Miner | Met Data Miner 7044 | -7/Data Miner | Learned location of Section 7 (-2) 7044 | -7/Data Miner | Acquired the access code to Warlord's prototype stash 7060 | -7/Data Miner | Received God Mode back door access code from Data Miner 7108 | -7/Data Miner | Identified exit to Proximity Caves 7110 | -7/Data Miner | Entered Proximity Caves 7158 | -6/Proximity Caves | Lost 4 parts (2n2u) 7423 | -6/Proximity Caves | Escorted by Enhanced Grunt 7460 | -6/Proximity Caves | Build established: Mutant 8004 | -6/Proximity Caves | Discovered exit to Factory (range 16) 8022 | -6/Proximity Caves | Learned Factory non-interactive machine intel 8193 | -6/Proximity Caves | Learned 4 Factory zone layouts 8281 | -6/Proximity Caves | Entered Factory 8281 | -6/Factory | Accompanied by 1 ally 8281 | -6/Factory | Evolved 2 slots: Power x1, Utility x1 8283 | -6/Factory | Loaded intel: 203 non-interactive machine locations 8438 | -6/Factory | Sucked down chute 8438 | -6/Factory | Entered Waste 8440 | -6/Waste | 1 allies followed down the chute 8467 | -6/Waste | Found Prototype Device 8467 | -6/Waste | Identified Exp. ECM Suite 8479 | -6/Waste | Spotted C-40 Crusher 8504 | -6/Waste | Crushed by Compactor (1 part destroyed, 2 dropped) 8507 | -6/Waste | Crushed by Compactor (1 part destroyed, 1 dropped) 8513 | -6/Waste | Crushed by Compactor (1 part destroyed) 8515 | -6/Waste | Assimilated C-40 Crusher with FLK Orb 8518 | -6/Waste | Spotted C-40 Crusher 8518 | -6/Waste | Spotted C-40 Crusher 8522 | -6/Waste | Allies destroyed C-40 Crusher 8525 | -6/Waste | Assimilated C-40 Crusher with FLK Orb 8528 | -6/Waste | Self-destructed Last Messages --------------- 08513_ Hcp. Storage Unit crushed. 08513_ Dropped Master Tearclaws. 08515_ C-40 Crusher assimilated. 08515_ C-40 Crusher sneak attacks. 08515_ Crusher 5a suffers critical hit (Destroy). 08516_ Exp. Heat Sink crushed. 08516_ 01-MTF's Shockpuncher crushed. 08516_ Hvy. Battle Rifle crushed. 08516_ Plasma Cutter crushed. 08516_ C-40 Crusher suffers critical hit (Destroy). 08518_ Crusher 5a Antimatter Reactor crushed. 08519_ /OLH>0:H/RFS|A US62HCH|%E>DEKE<%9 08521_ Extracted 1 energy. 08522_ C-40 Crusher Imp. Cooling System crushed. 08522_ C-40 Crusher suffers critical hit (Destroy). 08522_ C-40 Crusher destroyed. 08525_ Dynamic Insulation System crushed. 08525_ C-40 Crusher assimilated. 08526_ Imp. Cooling System crushed. 08526_ Hvy. Treads crushed. Map ----- +----------------------------------------------------+ | ?????????????????????????????????????????????????? | | ?????????????????????????????????????????????????? | | ?????????????????????????????????????????????????? | | ?????????????????????????????????????????????????? | | ?????????????????????????????????????????????????? | | ?????????????????????????????????????????????????? | | ?????????????????????????????????????????????????? | | ?????????????????????????????????????????????????? | | ?????????????????????????????????????????????????? | | ?????????????????????????????????????????????????? | | ?????????????????????????????????????????????????? | | ????????????????????############?????????????????? | | ????????????????????############?????????????????? | | ????????????????????## ##?????????????????? | | ????????????????????## ##?????????????????? | | ????????????????????## ##?????????????????? | | ????????????????????## ##?????????????????? | | ????????????????????## ! ##?????????????????? | | ????????????????????## ! ##?????????????????? | | ????????????????????## ##?????????????????? | | ????????????????????## ???????????????????? | | ????????################ /##???????????????????? | | ????????################ ![##???????????????????? | | ????????## #### ![[##???????????????????? | | ????????## #### ![!##???????????????????? | | ????????## #### @CC##???????????????????? | | ????????## !CC##???????????????????? | | ????????## = % ##???????????????????? | | ????????## CC ##???????????????????? | | ????????## CC ##???????????????????? | | ????????## ! #### ##???????????????????? | | ????????## #### ##???????????????????? | | ????????## #### ##???????????????????? | | ????????################ ##???????????????????? | | ????????################ ##???????????????????? | | ?????????????????????? ???????????????????? | | ?????????????????????? ???????????????????? | | ????????????????????## ??????????????????? | | ????????????????????## ???????????????? | | ????????????????????#### ######???????????????? | | ????????????????????#### ######???????????????? | | ??????????????????????## ##???????????????????? | | ??????????????????????## ##???????????????????? | | ??????????????????????## ##???????????????????? | | ?????????????????????? [ ##???????????????????? | | ???????????????????????? ?????????????????????? | | ?????????????????????????????????????????????????? | | ?????????????????????????????????????????????????? | | ?????????????????????????????????????????????????? | | ?????????????????????????????????????????????????? | +----------------------------------------------------+ Best States ------------- Heat Dissipation 60 Energy Generation 21 Energy Capacity 780 Matter Stores 300 Matter Capacity 300 Sight Range 16 Terrain Scan Density 10 Additional Mass Support 12 Armor Coverage 600 Evasion (%) 55 Targeting Accuracy 5 Recoil Reduction 4 Offensive Hacking 10 Item Schematics ----------------- Mic. Nuclear Core | -8/Storage | Hacked Huge Storage Unit | -8/Storage | Hacked Combat Drone Bay | -7/Data Miner | Free Lgt. Regenerative Plating | -7/Data Miner | Free Biomechanical Wings | -7/Data Miner | Free Gravity Neutralizer | -7/Data Miner | Free Ion Burst Cannon | -7/Data Miner | Free Antigrav System | -7/Data Miner | Free Mass Driver | -7/Data Miner | Free Recoil Nullifier | -7/Data Miner | Free Neutrino Core | -7/Data Miner | Free Imp. System Guard | -7/Data Miner | Free Robot Schematics ------------------ B-48 Gladiator | -7/Data Miner | Free M-28 Smith | -7/Data Miner | Free O-24 Administrator | -7/Data Miner | Free H-55 Commando | -7/Data Miner | Free G-50 Soldier | -7/Data Miner | Free Fabricated ------------ Nothing Alien Tech Used ----------------- None Achievements -------------- None Challenges ------------ None Game ------ Seed ShockGammaShearcannon Manual? 0 Play Time 00:39:53 Cumulative 439.5 hours Start 2023.01.19 @ 00:59:06 End 2023.01.20 @ 22:30:03 Sessions 5 Manual Loads 0 Difficulty Rogue Special Mode None Game No. 438 Rogue 438 Adventurer 0 Explorer 0 Win Type - Total 32 Types 18/3/4/1/2/1/3/0/0 Lore% 92 Gallery% 93 Achievement% 82 Wizard Run 0 Options --------- ASCII 0 Keyboard 0 Movement Arrows Keybinds 0 Fullscreen 2 Font 24/Smallcaps Map View 76x50 Tactical HUD 1 Map Filters NONE Filters NONE Steam 1 RUN: 695a73fd-cffe-43c9-8ba4-5098e62978ee